Cogmind - Beta 13 @@@ ROGUE MODE // 2024.04.18 @ 01:15:54 Player: Cracklepappy Result: Destroyed by AY-Z61(R) with Subdweller Beam Cannon Performance ------------- Evolutions (0) 0 Regions Visited (2) 400 Robots Destroyed (26) 130 Value Destroyed (609) 609 Prototype IDs (0) 0 Alien Tech Used (0) 0 Bonus (0) 0 TOTAL SCORE: 1139 Bonus ------- None Cogmind --------- Core Integrity 0/250 Matter 279/300 Energy 226/250 System Corruption 4% Temperature Cool (90) Movement Treading (560) Ox4 Location -10/Subcaves Parts ------- > --- POWER (1) -------- Ion Engine > --- PROPULSION (2) --- Spiked Treads > --- UTILITY (2) ------ Huge Storage Unit > --- WEAPON (2) ------- Subdweller Laser Subdweller Beam Cannon > --- INVENTORY (25) --- Aluminum Leg Aluminum Leg Wheel Wheel Improved Heat Sink Large Storage Unit Huge Storage Unit High-capacity Matter Pod (200) Improved Terrain Scanner Core Shielding Core Shielding Core Shielding Hacking Suite EM Pulse Gun Riot Gun Medium Laser Medium Laser Beam Cannon Beam Cannon Light Assault Rifle Light Assault Rifle Barrage Gun Light Cannon Mining Laser Peak State ------------ > --- POWER ------------ Ion Engine > --- PROPULSION ------- Spiked Treads Spiked Treads > --- UTILITY ---------- Huge Storage Unit Core Shielding > --- WEAPON ----------- Subdweller Beam Cannon Subdweller Beam Cannon > --- INVENTORY -------- Ion Engine Aluminum Leg Aluminum Leg Wheel Wheel Improved Heat Sink Large Storage Unit Huge Storage Unit High-capacity Matter Pod Improved Terrain Scanner Core Shielding Core Shielding Core Shielding Hacking Suite EM Pulse Gun Riot Gun Medium Laser Medium Laser Beam Cannon Beam Cannon Light Assault Rifle Light Assault Rifle Barrage Gun Light Cannon Mining Laser [Rating: 14] Favorites ----------- Power Ion Engine Engine Ion Engine Propulsion Light Treads Treads Light Treads Leg Aluminum Leg Wheel Wheel Utility Huge Storage Unit Storage Huge Storage Unit Protection Core Shielding Weapon Light Assault Rifle Energy Gun Subdweller Laser Energy Cannon Subdweller Beam Cannon Ballistic Gun Light Assault Rifle Ballistic Cannon Light Cannon Build | -11 -10 -10 ------- Run | Yrd Mat Sub Slots Evolved . | . . . Power . | . . . Propulsion . | . . . Utility . | . . . Weapon . | . . . Parts Attached 25 | 6 11 8 Power 3 | 1 1 1 Engine 3 | 1 1 1 Core . | . . . Reactor . | . . . Propulsion 7 | 2 3 2 Treads 4 | 2 . 2 Leg 1 | . 1 . Wheel 2 | . 2 . Hover . | . . . Flight . | . . . Utility 4 | 1 3 . Device . | . . . Storage 2 | 1 1 . Processor . | . . . Hackware . | . . . Protection 2 | . 2 . Artifact . | . . . Weapon 11 | 2 4 5 Energy Gun 1 | . . 1 Energy Cannon 4 | . . 4 Ballistic Gun 4 | 2 2 . Ballistic Cannon 2 | . 2 . Launcher . | . . . Special Weapon . | . . . Impact Weapon . | . . . Slashing Weapon . | . . . Piercing Weapon . | . . . Special Melee Weapon . | . . . Unidentified Prototypes . | . . . Parts Lost 6 | . 3 3 Power 2 | . 1 1 Propulsion 3 | . 2 1 Utility 1 | . . 1 Weapon . | . . . Highest Loss Streak 3 | . 3 2 To Critical Strikes . | . . . Average Slot Usage (%) 97 | . 96 99 Engine 13 | . 13 13 Treads 23 | . 22 25 Wheel 3 | . 4 2 Storage 14 | . 14 14 Protection 12 | . 10 14 Energy Cannon 10 | . . 27 Ballistic Gun 17 | . 27 . Naked Turns . | . . . Heaviest Build 102 | 12 88 102 Greatest Support 40 | 40 40 40 Greatest Overweight (x) 4 | . 4 4 Average Overweight (x) 2 | . 2 2 Largest Inventory Capacity 25 | 8 25 25 Average Capacity 23 | 7 24 25 Most Carried 25 | 8 25 25 Average Carried 21 | 5 21 24 Final Capacity 25 | 8 25 25 Final Carried 25 | 8 25 24 Class Distribution -------------------- 69% | Mutant 30% | Derelict-Mutant Dominant Class ---------------- Mutant | -10/Materials Derelict-Mutant | -10/Subcaves Resources | -11 -10 -10 ----------- Run | Yrd Mat Sub Matter Collected 999 | 259 569 171 Remotely . | . . . Salvage Created 930 | 54 796 80 Parts 63 | 3 52 8 Haulers Intercepted 2 | . 2 . Recyclers Shooed . | . . . Parts Field Recycled . | . . . Retrieved Matter . | . . . Parts Self-Destructed 3 | . . 3 Prevented . | . . . Kills | -11 -10 -10 ------- Run | Yrd Mat Sub Combat Hostiles Destroyed 18 | . 16 2 Guns 13 | . 13 . Cannons 2 | . . 2 AOE 3 | . 3 . Classes Destroyed 9 | 1 7 1 Worker 1 | . 1 . Tunneler 1 | . 1 . Hauler 2 | . 2 . Recycler 2 | 1 1 . Operator 1 | . 1 . Watcher 1 | . 1 . Swarmer 6 | . 6 . Grunt 10 | . 10 . Subdweller 2 | . . 2 Best Kill Streak 4 | 1 4 2 Combat Bots Only 3 | . 3 2 Max Kills in Single Turn 4 | 1 4 1 Gunslinging 1 | . 1 . Exploded 3 | . 3 . Melee . | . . . Uniques/NPCs Destroyed . | . . . Combat | -11 -10 -10 -------- Run | Yrd Mat Sub Hostile Shots Fired 124 | . 102 22 Missed 32 | . 28 4 Damage Taken 1283 | . 816 467 Core 252 | . 185 67 Absorbed by Shields . | . . . Redirected to Shielding 50 | . 35 15 Core Remaining (%) 100 | 100 . . Volleys Fired 110 | 8 84 18 Largest 2 | 2 2 2 Hottest 160 | 40 70 160 Shots Fired 213 | 16 169 28 Gun 184 | 16 165 3 Cannon 29 | . 4 25 Launcher . | . . . Special . | . . . Kinetic 185 | 16 169 . Thermal 28 | . . 28 Explosive . | . . . Electromagnetic . | . . . Robot Hit Streak 11 | 4 11 5 Robot Miss Streak 6 | 5 6 1 Penetration Max . | . . . Secondary Targets 3 | . 3 . Max Gunslinging Chain 1 | . 1 . Shots Hit Robots 120 | 7 105 8 Core Hits 56 | 3 51 2 Critical Kills . | . . . Critical Parts Destroyed . | . . . Critical Strikes . | . . . Melee Attacks . | . . . Impact . | . . . Slashing . | . . . Piercing . | . . . Sneak Attacks . | . . . Combat Hostiles . | . . . Follow-up Attacks . | . . . Damage Inflicted 1261 | 59 1003 199 Guns 936 | 59 841 36 Cannons 163 | . . 163 Explosions 156 | . 156 . Melee . | . . . Ramming 6 | . 6 . Kinetic 900 | 59 841 . Thermal 199 | . . 199 Explosive . | . . . Electromagnetic 156 | . 156 . Impact . | . . . Slashing . | . . . Piercing . | . . . Highest Corruption 4 | . 4 4 Average Corruption 3 | . 3 4 Corruption Purged . | . . . Corruption Blocked . | . . . Effects 36 | . 16 20 Message Errors 12 | . 6 6 Matter Fused 7 | . 2 5 Heat Flow Errors 3 | . 1 2 Energy Discharges 5 | . 2 3 Data Loss (minor) 1 | . . 1 Data Loss (major) 5 | . 2 3 Misfires 2 | . 2 . Weapon Failures 1 | . 1 . Overload Shots . | . . . Overflow Damage . | . . . Projectiles . | . . . Explosions . | . . . Melee . | . . . Knockbacks . | . . . Impact . | . . . Kinetic . | . . . Secondary . | . . . Self-Inflicted Damage . | . . . Shots . | . . . Rammed 2 | . 2 . Targets Rammed 2 | . 2 . Kicked . | . . . Crushed . | . . . Highest Temperature 117 | . 102 117 Average Temperature 35 | . 12 58 Received Heat Transfer 438 | . 306 132 Siege Activations . | . . . Robots Corrupted . | . . . Combat Hostiles . | . . . Parts Fried . | . . . Impact Corruptions . | . . . Robots Melted . | . . . Combat Hostiles . | . . . Parts Melted . | . . . Heat Transferred 272 | . . 272 Parts Sabotaged . | . . . Parts Stolen . | . . . Parts Stripped . | . . . Power Chain Reactions . | . . . Alert | -11 -10 -10 ------- Run | Yrd Mat Sub Peak Influence 319 | 5 319 . Initial 3 | . 3 . Average 167 | 1 185 . Maximum Alert Level 1 | . 1 . Low Security (%) 52 | 100 47 . Level 1 47 | . 52 . Level 2 . | . . . Level 3 . | . . . Level 4 . | . . . Level 5 . | . . . High Security . | . . . Max Security . | . . . Squads Dispatched 5 | . 5 . Investigation 2 | . 2 . Extermination . | . . . Reinforcement 3 | . 3 . Assault . | . . . Garrison . | . . . Intercept . | . . . Searches Triggered . | . . . Construction Impeded . | . . . Haulers Reinforced . | . . . Active Scanning Responses . | . . . Cargo Convoy Interrupts . | . . . Stealth | -11 -10 -10 --------- Run | Yrd Mat Sub Distress Signals 2 | . 2 . Communications Jammed . | . . . Distress Signals . | . . . Times Spotted 43 | . 38 5 Peak Tracking Total 5 | . 5 2 Tactical Retreats 1 | . 1 . Traps | -11 -10 -10 ------- Run | Yrd Mat Sub Traps Triggered 3 | . 3 . Indirectly . | . . . Trap Hack Attempts . | . . . Triggered . | . . . Disarmed . | . . . Reprogrammed . | . . . Reused . | . . . Traps Extracted . | . . . Installed . | . . . Triggered 2 | . . 2 Machines | -11 -10 -10 ---------- Run | Yrd Mat Sub Machines Disabled 6 | . 6 . Max in Single Turn 4 | . 4 . Machines Repaired . | . . . Machines Dismantled . | . . . Machines Sabotaged . | . . . Overloaded Fab Kills . | . . . Hacking | -11 -10 -10 --------- Run | Yrd Mat Sub Machines Accessed 6 | . 6 . Terminals 4 | . 4 . Fabricators . | . . . Repair Stations . | . . . Recycling Units 2 | . 2 . Scanalyzers . | . . . Garrison Access . | . . . Total Hacks 18 | . 18 . Successful 7 | . 7 . Failed 10 | . 10 . Catastrophic 4 | . 4 . Database Lockouts 1 | . 1 . Manual 9 | . 9 . Terminals 11 | . 11 . Fabricators . | . . . Repair Stations . | . . . Recycling Units 7 | . 7 . Scanalyzers . | . . . Garrison Access . | . . . Terminal Hacks 3 | . 3 . Part Schematic 2 | . 2 . Locate Traps 1 | . 1 . Fabricator Hacks . | . . . Repair Station Hacks . | . . . Recycling Unit Hacks 1 | . 1 . Retrieve Components 1 | . 1 . Scanalyzer . | . . . Garrison Access Hacks . | . . . Unauthorized Hacks 3 | . 3 . Terminals 1 | . 1 . Track 1 | . 1 . Fabricators . | . . . Repair Stations . | . . . Recycling Units 2 | . 2 . Tunnel 2 | . 2 . Scanalyzers . | . . . Garrison Access . | . . . Data Cores Recovered . | . . . Used . | . . . Hacking Detections 5 | . 5 . Full Trace Events 1 | . 1 . Feedback Events . | . . . Feedback Blocked . | . . . Robot Schematics Acquired . | . . . Robots Built . | . . . Authchips . | . . . Time . | . . . Total Robot Build Rating . | . . . Part Schematics Acquired 2 | . 2 . Parts Built . | . . . Authchips . | . . . Time . | . . . Total Part Build Rating . | . . . Parts Repaired . | . . . Time . | . . . Parts Recycled . | . . . Recycled Matter . | . . . Retrieved Matter . | . . . Retrieved Components 3 | . 3 . Parts Scanalyzed . | . . . Part Schematics Acquired . | . . . Parts Damaged . | . . . Bothacking | -11 -10 -10 ------------ Run | Yrd Mat Sub Used RIF Installer . | . . . Robots Hacked . | . . . Non-combat . | . . . Combat . | . . . Robot Hacks Applied . | . . . Relay Couplers Released . | . . . Fabnet Peak Effective % . | . . . Robots Rewired . | . . . Allies Hacked . | . . . Hacks Repelled . | . . . Allies | -11 -10 -10 -------- Run | Yrd Mat Sub Total Allies . | . . . Largest Group . | . . . Highest-Rated Group . | . . . Highest-Rated Ally . | . . . Total Orders . | . . . Ally Attacks . | . . . Total Damage . | . . . Kills . | . . . Allies Corrupted . | . . . Allies Melted . | . . . Intel | -11 -10 -10 ------- Run | Yrd Mat Sub Robot Analysis Total . | . . . Derelict Logs Recovered . | . . . Drone Launches . | . . . Drone Recoveries . | . . . Exploration | -11 -10 -10 ------------- Run | Yrd Mat Sub Turns Passed 3587 | 231 2074 1282 Spaces Moved 1115 | 122 616 377 Core 3 | 3 . . Treads 868 | 119 443 306 Legs . | . . . Wheels 244 | . 173 71 Hover . | . . . Flight . | . . . Fastest Speed 50 | 50 140 140 Average Speed 271 | 157 266 318 Slowest Speed 360 | 160 320 360 Overloaded Moves . | . . . Propulsion Burnouts . | . . . Robots Hopped . | . . . Cave-ins Triggered . | . . . Exploration Rate (%) 40 | 9 97 16 Regions Visited 2 Branch Regions 1 Pre-discovered Areas 2 | . 2 . Known Exits Taken . | . . . Unknown Exits Taken 2 | 1 1 . Scrap Searched 9 | . . 9 Spaces Dug 2 | . . 2 Terrain Destroyed 7 | . . 7 Melee . | . . . Projectile 7 | . . 7 AOE . | . . . Terrain Rammed . | . . . Walls Destroyed . | . . . Machines Disabled . | . . . Actions | -11 -10 -10 --------- Run | Yrd Mat Sub Total 1488 | 145 914 429 Wait 175 | 2 161 12 Move 1113 | 121 615 377 Hop . | . . . Pick Up 45 | 8 30 7 Fast Attach 8 | 6 2 . Attach 5 | . 4 1 Detach . | . . . Swap 12 | . 5 7 Drop 18 | . 11 7 Fire 110 | 8 84 18 Melee . | . . . Ram . | . . . Kick . | . . . Crush 2 | . 2 . Escape Stasis . | . . . Rewire . | . . . Trap . | . . . Miscellaneous . | . . . Route ------- -11/Scrapyard -10/Materials (discovered 6 exits: [*Mat x3] / [*Min x2] / [*Sub]) -10/Subcaves History --------- Turn | Location | Event 8 | -11/Scrapyard | Discovered new exit (range 15) 232 | -11/Scrapyard | Entered Materials 314 | -10/Materials | Build established: Mutant 606 | -10/Materials | Discovered new exit (range 9) 1058 | -10/Materials | Discovered new exit (range 16) 1571 | -10/Materials | Discovered new exit (range 8) 1786 | -10/Materials | Discovered new exit (range 16) 1932 | -10/Materials | Core integrity fell below 50% 1980 | -10/Materials | Lost 3 parts (1p2n) 2011 | -10/Materials | Central database locked down 2015 | -10/Materials | Discovered new exit (range 16) 2268 | -10/Materials | Discovered new exit (range 4) 2306 | -10/Materials | Entered Subcaves 2767 | -10/Subcaves | Build established: Derelict-Mutant 2965 | -10/Subcaves | Core integrity fell below 20% 3588 | -10/Subcaves | Destroyed by AY-Z61(R) with Subdweller Beam Cannon Last Messages --------------- 02947_ 3T-THM(R) destroyed. 02949_ Acquired 7 matter. 02950_ System corrupted: Substantial component data lost. 02955_ Ion Engine destroyed. 02967_ 8O-41D(R) destroyed. 02971_ B4-5QN(R) destroyed. 02981_ Acquired 10 matter. 02988_ Acquired Sub. Laser. 03117_ System corrupted: Matter fused (-6). 03150_ EP//LW78,T,CT5XF#Q#H 8GXG6HS SA7Q 03174_ System corrupted: Matter fused (-6). 03317_ System corrupted: Substantial component data lost. 03382_ System corrupted: Matter fused (-9). 03406_ 9HTPUBY 6SCQ%T%DW3=L0I|Q,P5O 03438_ G6WFRMXC9RU=4YE7 Q7H 03521_ Sub. Beam Cannon shoots sparks and powers down. 03542_ Dropped Broken Sub. Beam Cannon. 03569_ V5GKKTGRQB%C&NEFCJDYV 03584_ Spk. Treads destroyed. 03588_ Core Shielding destroyed. Map ----- +----------------------------------------------------+ | | | | | ?????????????????????????????????????????????????? | | ?????????????????????????????????????????????????? | | ?????????????????????????????????????????????????? | | ?????????????????????????????????????????????????? | | ?????????????????????????????????????????????????? | | ?????????????????????????????????????????????????? | | ?????????????????????????????????????????????????? | | ?????????????????????????????????????????????????? | | ?????????????????????????????????????????????????? | | ?????????????????????????????????????????????????? | | ?????????????????????????????????????????????????? | | ?????????????????????????????????????????????????? | | ?????????????????????????????????????????????????? | | ?????????????????????????????????????????????????? | | ????????????????##???????????????????????????????? | | ???????????######;##????????????##???????????????? | | ####??????## ##??###?????""#???????????????? | | ##????## #;#### ##??? " ????????????????? | | #????# ####;# #### "?????????????????? | | # ##???# ###### ] #;#??????????????????? | | ## #???# ### ##??????????????????? | | ?## #???# ##?????????????????? | | ??# #???# #?????????????????? | | ?## #???# @R #?????????????????? | | ?# #???# ### ####; % #???????????????? | | ### ##### #?# #???## ##???????????????? | | ## ## ### #????? #????????????????? | | ## #?????? %#????????????????? | | #??????? ???????????????? | | ## ## #??????? R ?????????????? | | # ### ## #???????? ????????????? | | # ### ??????? ???????????? | | ### ## ## ## ???????? ??????????? | | ##?# # ## ## ???????? ???????????? | | ##?## # ### ##?? #????????? ## ???????????? | | #??# #???????#??????????#?????????????? | | ##??# ## #????????????????????????????????? | | #???# ##?# #????????????????????????????????? | | ????## #??? ????????????????????????????????? | | ?????# ##??? ????????????????????????????????? | | ?????#####???? ???????????????????????????????? | | ?????????????????????????????????????????????????? | | ?????????????????????????????????????????????????? | | ?????????????????????????????????????????????????? | | ?????????????????????????????????????????????????? | | ?????????????????????????????????????????????????? | | ?????????????????????????????????????????????????? | | ?????????????????????????????????????????????????? | +----------------------------------------------------+ Best States ------------- Heat Dissipation 25 Energy Generation 10 Energy Capacity 250 Matter Stores 300 Matter Capacity 300 Sight Range 16 Terrain Scan Density 10 Core Shielding 20 Power Shielding 33 Evasion (%) 40 Recoil Reduction 2 Item Schematics ----------------- Hcp. Storage Unit | -10/Materials | Hacked Huge Storage Unit | -10/Materials | Hacked Robot Schematics ------------------ None Fabricated ------------ Nothing Alien Tech Used ----------------- None Achievements -------------- None Challenges ------------ None Game ------ Seed ThrowingWeldingPod Manual? 0 Play Time 00:18:16 Cumulative 594.8 hours Start 2024.04.17 @ 23:59:43 End 2024.04.18 @ 01:15:54 Sessions 3 Manual Loads 0 Difficulty Rogue Special Mode None Game No. 401 Rogue 401 Adventurer 0 Explorer 0 Win Type - Total 18 Types 9/3/2/0/0/1/2/1/0 Lore% 82 Gallery% 90 Achievement% 80 Wizard Run 0 Options --------- Layout 0 ASCII 0 Keyboard 0 Movement Numpad Keybinds 0 Fullscreen 2 Font 24/Smallcaps Map View 76x50 Zoom Use 0% Tactical HUD 1 Map Filters NONE Filters NONE Steam 1 RUN: de32ea8b-0041-4eb7-b75c-3f275ed0087f